[Event "2nd Namma Bengaluru Open-A 2025"]
[Site "Bengaluru"]
[Date "2025.04.12"]
[Round "4.22"]
[White "Harshit Ranjan Sahu"]
[Black "Krishnan, Ritvik"]
[Result "1-0"]
[Annotator "ChessBase"]
[ECO "C01"]
[WhiteElo "2142"]
[BlackElo "2316"]
[PlyCount "161"]
[EventDate "2025.04.10"]
[EventType "swiss"]
[EventCountry "IND"]
[SourceTitle "playchess.com"]
[Source "ChessBase"]
[SourceQuality "1"]
[TimeControl "5400+30"]

1. e4 {[%emt 0:02:34]} e6 {[%emt 0:00:06]} 2. d4 {[%emt 0:00:23]} d5 {[%emt 0:00:05]} 3. exd5 {[%emt 0:00:22]} exd5 {[%emt 0:00:07]} 4. Nf3 {[%emt 0:00:33]} Nc6 {[%emt 0:00:29]} 5. c3 {[%emt 0:00:13]} Bf5 {[%emt 0:01:30]} 6. Bd3 {[%emt 0:00:59]} Qd7 {[%emt 0:00:49]} 7. Qc2 {[%emt 0:01:20]} Bxd3 {[%emt 0:02:26]} 8. Qxd3 {[%emt 0:00:02]} Bd6 {[%emt 0:01:17]} 9. O-O {[%emt 0:02:06]} O-O-O {[%emt 0:02:00]} 10. b4 {[%emt 0:01:41]} f6 {[%emt 0:17:26]} 11. Nbd2 {[%emt 0:01:02]} g5 {[%emt 0:01:48]} 12. Nb3 {[%emt 0:01:09]} h5 {[%emt 0:03:05]} 13. a4 {[%emt 0:04:02]} h4 {[%emt 0:02:29]} 14. Ba3 {[%emt 0:03:43]} Nce7 {[%emt 0:10:26]} 15. b5 {[%emt 0:02:37]} Qf5 {[%emt 0:02:37]} 16. Qe2 {[%emt 0:03:35]} Bxa3 {[%emt 0:02:36]} 17. Rxa3 {[%emt 0:00:06]} Ng6 {[%emt 0:00:56]} 18. Ne1 {[%emt 0:16:26]} Nf4 {[%emt 0:01:22]} 19. Qa2 {[%emt 0:02:36]} Re8 {[%emt 0:02:13]} 20. Nc1 {[%emt 0:00:19]} h3 {[%emt 0:11:18]} 21. g3 {[%emt 0:04:14]} Ng2 {[%emt 0:05:00]} 22. Qc2 {[%emt 0:03:02]} Re4 {[%emt 0:02:06]} 23. Ncd3 {[%emt 0:08:13]} Nh6 {[%emt 0:04:24]} 24. Qd1 {[%emt 0:07:05]} Ng4 {[%emt 0:05:04]} 25. Qf3 {[%emt 0:01:21]} Qe6 {[%emt 0:00:32]} 26. Ra1 {[%emt 0:00:50]} Kb8 {[%emt 0:03:14]} 27. Nc2 {[%emt 0:11:32]} b6 {[%emt 0:04:45]} 28. a5 {[%emt 0:00:52]} Re8 {[%emt 0:01:08]} 29. Ncb4 {[%emt 0:03:29]} Kc8 {[%emt 0:02:20]} 30. Nc6 {[%emt 0:01:32]} N2e3 {[%emt 0:02:31]} 31. axb6 {[%emt 0:06:47]} axb6 {[%emt 0:00:45]} 32. fxe3 {[%emt 0:02:04]} Rxe3 {[%emt 0:00:10]} 33. Qf5 {[%emt 0:04:03]} Qxf5 {[%emt 0:00:48]} 34. Rxf5 {[%emt 0:00:03]} Rxd3 {[%emt 0:01:12]} 35. Ra8+ {[%emt 0:00:12]} Kd7 {[%emt 0:01:56]} 36. Rxd5+ {[%emt 0:00:02]} Ke6 {[%emt 0:00:07]} 37. Rxe8+ {[%emt 0:00:04]} Kxd5 {[%emt 0:00:04]} 38. Nb4+ {[%emt 0:00:06]} Kc4 {[%emt 0:00:05]} 39. Nxd3 {[%emt 0:00:02]} Kxd3 {[%emt 0:00:08]} 40. Rc8 {[%emt 0:00:53]} Kxc3 {[%emt 0:03:04]} 41. Rxc7+ {[%emt 0:00:02]} Kxd4 {[%emt 0:00:10]} 42. Rc6 {[%emt 0:00:04]} Kd5 {[%emt 0:00:54]} 43. Rxb6 {[%emt 0:00:29]} Kc4 {[%emt 0:00:44]} 44. Rb8 {[%emt 0:00:38]} Kc5 {[%emt 0:00:05]} 45. b6 {[%emt 0:00:14]} Kc6 {[%emt 0:00:05]} 46. b7 {[%emt 0:00:25]} Kc7 {[%emt 0:00:32]} 47. Rh8 {[%emt 0:00:02]} Kxb7 {[%emt 0:00:06]} 48. Rxh3 {[%emt 0:00:05]} Kc6 {[%emt 0:00:08]} 49. Rh8 {[%emt 0:00:26]} Kd6 {[%emt 0:00:11]} 50. Re8 {[%emt 0:01:14]} Ne5 {[%emt 0:00:46]} 51. h3 {[%emt 0:00:36]} Kd7 {[%emt 0:00:15]} 52. Ra8 {[%emt 0:00:06]} Ke6 {[%emt 0:00:44]} 53. Kf2 {[%emt 0:10:25]} f5 {[%emt 0:01:44]} 54. Ke3 {[%emt 0:00:00]} Ng6 {[%emt 0:01:10]} 55. Ra6+ {[%emt 0:00:00]} Kf7 {[%emt 0:00:02]} 56. Kd4 {[%emt 0:00:00]} Kg7 {[%emt 0:01:02]} 57. Ra5 {[%emt 0:00:00]} Kf6 {[%emt 0:00:08]} 58. Ra1 {[%emt 0:00:00]} Ke6 {[%emt 0:00:25]} 59. Rf1 {[%emt 0:00:00]} Kf6 {[%emt 0:00:57]} 60. Kd5 {[%emt 0:00:00]} Ne7+ {[%emt 0:00:13]} 61. Kd6 {[%emt 0:00:00]} Ng6 {[%emt 0:00:04]} 62. Rf2 {[%emt 0:00:33]} Ne5 {[%emt 0:03:05]} 63. Kd5 {[%emt 0:01:02]} Ng6 {[%emt 0:00:05]} 64. Kd4 {[%emt 0:00:04]} Ke6 {[%emt 0:00:16]} 65. Rh2 {[%emt 0:00:44]} Kf6 {[%emt 0:00:43]} 66. Rh1 {[%emt 0:00:34]} f4 {[%emt 0:02:12]} 67. gxf4 {[%emt 0:01:35]} Nxf4 {[%emt 0:00:06]} 68. Ke4 {[%emt 0:00:17]} Nh5 {[%emt 0:01:37]} 69. Rg1 {[%emt 0:00:15]} Ng7 {[%emt 0:00:49]} 70. Ra1 {[%emt 0:00:05]} Kg6 {[%emt 0:00:30]} 71. Ke5 {[%emt 0:00:18]} Kh5 {[%emt 0:01:01]} 72. Ra8 {[%emt 0:00:27]} Kg6 {[%emt 0:00:34]} 73. Rf8 {[%emt 0:00:32]} Nh5 {[%emt 0:00:14]} 74. Rg8+ {[%emt 0:01:29]} Ng7 {[%emt 0:00:05]} 75. Ra8 {[%emt 0:00:06]} Nh5 {[%emt 0:00:58]} 76. Ra6+ {[%emt 0:00:05]} Kg7 {[%emt 0:00:17]} 77. Kf5 {[%emt 0:00:08]} Ng3+ {[%emt 0:00:53]} 78. Kxg5 {[%emt 0:00:05]} Ne4+ {[%emt 0:00:02]} 79. Kf4 {[%emt 0:00:13]} Nf6 {[%emt 0:00:10]} 80. h4 {[%emt 0:00:11]} Ng8 {[%emt 0:00:55]} 81. Kg5 {[%emt 0:00:08]} 1-0

[Event "2nd Namma Bengaluru Open-A 2025"]
[Site "Bengaluru"]
[Date "2025.04.12"]
[Round "4.23"]
[White "Gyana Sai Santhosh M"]
[Black "Karthikeyan, P.."]
[Result "0-1"]
[Annotator "ChessBase"]
[ECO "D90"]
[WhiteElo "2062"]
[BlackElo "2312"]
[PlyCount "74"]
[EventDate "2025.04.10"]
[EventType "swiss"]
[EventCountry "IND"]
[SourceTitle "playchess.com"]
[Source "ChessBase"]
[SourceQuality "1"]
[TimeControl "5400+30"]

1. d4 {[%emt 0:00:21]} Nf6 {[%emt 0:02:00]} 2. c4 {[%emt 0:00:12]} g6 {[%emt 0:01:44]} 3. Nc3 {[%emt 0:00:14]} d5 {[%emt 0:00:03]} 4. Nf3 {[%emt 0:01:20]} Bg7 {[%emt 0:00:08]} 5. h4 {[%emt 0:00:44]} c6 {[%emt 0:00:56]} 6. cxd5 {[%emt 0:00:25]} cxd5 {[%emt 0:00:44]} 7. Bf4 {[%emt 0:00:11]} Nc6 {[%emt 0:00:33]} 8. e3 {[%emt 0:00:09]} O-O {[%emt 0:04:20]} 9. Be2 {[%emt 0:00:25]} Bg4 {[%emt 0:05:19]} 10. Ne5 {[%emt 0:07:50]} Bxe2 {[%emt 0:00:27]} 11. Qxe2 {[%emt 0:00:37]} Rc8 {[%emt 0:00:57]} 12. O-O {[%emt 0:17:10]} e6 {[%emt 0:12:01]} 13. Nf3 {[%emt 0:07:21]} Ne4 {[%emt 0:06:55]} 14. Rfc1 {[%emt 0:03:47]} h6 {[%emt 0:02:05]} 15. Bh2 {[%emt 0:08:24]} a6 {[%emt 0:03:18]} 16. Nxe4 {[%emt 0:09:37]} dxe4 {[%emt 0:00:46]} 17. Nd2 {[%emt 0:00:07]} f5 {[%emt 0:05:00]} 18. h5 {[%emt 0:01:36]} gxh5 {[%emt 0:09:07]} 19. Qxh5 {[%emt 0:01:34]} Qe7 {[%emt 0:12:31]} 20. Bf4 {[%emt 0:05:58]} Kh7 {[%emt 0:03:43]} 21. a3 {[%emt 0:05:52]} Rcd8 {[%emt 0:01:25]} 22. Rc2 {[%emt 0:05:42]} e5 {[%emt 0:02:26]} 23. dxe5 {[%emt 0:00:12]} Nxe5 {[%emt 0:00:16]} 24. Bxe5 {[%emt 0:04:49]} Bxe5 {[%emt 0:00:22]} 25. g3 {[%emt 0:01:01]} Qg7 {[%emt 0:06:34]} 26. Nc4 Bb8 {[%emt 0:00:30]} 27. Kg2 Rd3 {[%emt 0:00:30]} 28. Rh1 f4 {[%emt 0:00:30]} 29. exf4 Bxf4 {[%emt 0:00:30]} 30. Rh3 b5 {[%emt 0:00:30]} 31. Na5 e3 {[%emt 0:00:30]} 32. Qf3 Rd2 {[%emt 0:00:30]} 33. Rxd2 exd2 {[%emt 0:00:30]} 34. Nb3 Be3 {[%emt 0:00:30]} 35. Qe4+ Qg6 {[%emt 0:00:30]} 36. Qxg6+ Kxg6 {[%emt 0:00:30]} 37. Rh1 Rxf2+ {[%emt 0:00:30]} 0-1

[Event "2nd Namma Bengaluru Open-A 2025"]
[Site "Bengaluru"]
[Date "2025.04.12"]
[Round "4.24"]
[White "Daksh Goyal"]
[Black "Podolchenko, Evgeniy"]
[Result "1/2-1/2"]
[Annotator "ChessBase"]
[ECO "E07"]
[WhiteElo "2051"]
[BlackElo "2307"]
[PlyCount "73"]
[EventDate "2025.04.10"]
[EventType "swiss"]
[EventCountry "IND"]
[SourceTitle "playchess.com"]
[Source "ChessBase"]
[SourceQuality "1"]
[TimeControl "5400+30"]

1. Nf3 {[%emt 0:02:03]} Nf6 {[%emt 0:00:15]} 2. g3 {[%emt 0:00:36]} d5 {[%emt 0:01:36]} 3. Bg2 {[%emt 0:00:23]} e6 {[%emt 0:00:12]} 4. d4 {[%emt 0:05:23]} Be7 {[%emt 0:04:48]} 5. c4 {[%emt 0:00:37]} O-O {[%emt 0:00:09]} 6. Nc3 {[%emt 0:00:18]} c6 {[%emt 0:02:57]} 7. O-O {[%emt 0:12:27]} Nbd7 {[%emt 0:00:22]} 8. Qd3 {[%emt 0:08:42]} b6 {[%emt 0:15:25]} 9. e4 {[%emt 0:04:46]} Ba6 {[%emt 0:02:22]} 10. b3 {[%emt 0:01:11]} Rc8 {[%emt 0:01:06]} 11. Rd1 {[%emt 0:09:47]} c5 {[%emt 0:05:03]} 12. exd5 {[%emt 0:13:06]} exd5 {[%emt 0:03:31]} 13. dxc5 {[%emt 0:07:20]} dxc4 {[%emt 0:02:35]} 14. Qb1 {[%emt 0:00:44]} bxc5 {[%emt 0:14:35]} 15. Bh3 {[%emt 0:09:55]} Bb7 {[%emt 0:13:05]} 16. Ng5 {[%emt 0:02:39]} g6 {[%emt 0:02:53]} 17. Bf4 {[%emt 0:03:26]} Bc6 {[%emt 0:07:46]} 18. bxc4 {[%emt 0:03:43]} Nh5 {[%emt 0:05:19]} 19. Bxd7 Bxd7 {[%emt 0:00:30]} 20. Qb7 Bc6 {[%emt 0:00:30]} 21. Qxa7 Ra8 {[%emt 0:00:30]} 22. Rxd8 Rxa7 {[%emt 0:00:30]} 23. Rxf8+ Bxf8 {[%emt 0:00:30]} 24. Rb1 h6 {[%emt 0:00:30]} 25. Nge4 f5 {[%emt 0:00:30]} 26. Nd2 Bg7 {[%emt 0:00:30]} 27. Nd5 Bxd5 {[%emt 0:00:30]} 28. cxd5 Nxf4 {[%emt 0:00:30]} 29. gxf4 Rd7 {[%emt 0:00:30]} 30. Rc1 Rxd5 {[%emt 0:00:30]} 31. Nb3 Bf8 {[%emt 0:00:30]} 32. a4 Rd3 {[%emt 0:00:30]} 33. Nxc5 Bxc5 {[%emt 0:00:30]} 34. Rxc5 Rd4 {[%emt 0:00:30]} 35. Rc6 Rxa4 {[%emt 0:00:30]} 36. Rxg6+ Kh7 {[%emt 0:00:30]} 37. Rg3 1/2-1/2

[Event "2nd Namma Bengaluru Open-A 2025"]
[Site "Bengaluru"]
[Date "2025.04.12"]
[Round "4.25"]
[White "Tarun V"]
[Black "Ajay Santhosh Parvathareddy"]
[Result "0-1"]
[Annotator "ChessBase"]
[ECO "D24"]
[WhiteElo "1917"]
[BlackElo "2297"]
[PlyCount "66"]
[EventDate "2025.04.10"]
[EventType "swiss"]
[EventCountry "IND"]
[SourceTitle "playchess.com"]
[Source "ChessBase"]
[SourceQuality "1"]
[TimeControl "5400+30"]

1. d4 {[%emt 0:06:13]} Nf6 {[%emt 0:00:02]} 2. c4 {[%emt 0:00:07]} e6 {[%emt 0:00:27]} 3. Nf3 {[%emt 0:00:10]} d5 {[%emt 0:00:04]} 4. Bg5 {[%emt 0:00:09]} dxc4 {[%emt 0:00:10]} 5. Nc3 {[%emt 0:01:54]} a6 {[%emt 0:00:50]} 6. a4 {[%emt 0:00:18]} Bb4 {[%emt 0:01:21]} 7. e4 {[%emt 0:08:06]} h6 {[%emt 0:00:11]} 8. Bxf6 {[%emt 0:00:18]} Qxf6 {[%emt 0:00:03]} 9. Bxc4 {[%emt 0:00:23]} c5 {[%emt 0:00:01]} 10. O-O {[%emt 0:03:16]} cxd4 {[%emt 0:00:02]} 11. e5 {[%emt 0:01:06]} Qe7 {[%emt 0:00:05]} 12. Qxd4 {[%emt 0:02:33]} Nc6 {[%emt 0:00:21]} 13. Qg4 {[%emt 0:02:47]} Bd7 {[%emt 0:09:41]} 14. Rac1 {[%emt 0:06:38]} Kf8 {[%emt 0:05:04]} 15. Ne4 {[%emt 0:05:40]} Na5 {[%emt 0:01:04]} 16. Ba2 {[%emt 0:03:50]} Bc6 {[%emt 0:03:12]} 17. Rfd1 {[%emt 0:15:18]} Bxa4 {[%emt 0:06:20]} 18. Rd6 {[%emt 0:04:55]} Bc6 {[%emt 0:30:30]} 19. Nc5 {[%emt 0:09:31]} Bxc5 {[%emt 0:00:22]} 20. Rxc5 {[%emt 0:00:06]} h5 {[%emt 0:03:37]} 21. Qf4 {[%emt 0:01:38]} Bxf3 {[%emt 0:00:07]} 22. gxf3 {[%emt 0:02:39]} g5 {[%emt 0:01:58]} 23. Qd4 {[%emt 0:09:59]} Nc6 {[%emt 0:00:17]} 24. Rcxc6 {[%emt 0:00:35]} bxc6 {[%emt 0:00:28]} 25. Rd7 {[%emt 0:00:08]} Qe8 {[%emt 0:01:20]} 26. Qd6+ {[%emt 0:01:17]} Kg8 {[%emt 0:00:35]} 27. Re7 {[%emt 0:06:34]} Qd8 {[%emt 0:01:12]} 28. Bxe6 {[%emt 0:03:03]} Qxd6 {[%emt 0:00:12]} 29. Bxf7+ {[%emt 0:01:54]} Kf8 {[%emt 0:00:06]} 30. exd6 {[%emt 0:00:05]} Rh7 {[%emt 0:00:10]} 31. Bd5 {[%emt 0:00:52]} Rxe7 {[%emt 0:00:09]} 32. dxe7+ {[%emt 0:00:05]} Kxe7 {[%emt 0:00:04]} 33. Bxc6 {[%emt 0:00:04]} Rb8 {[%emt 0:00:05]} 0-1

[Event "2nd Namma Bengaluru Open-A 2025"]
[Site "Bengaluru"]
[Date "2025.04.12"]
[Round "4.26"]
[White "Chanda, Sandipan"]
[Black "Gaikwad Manas"]
[Result "1/2-1/2"]
[Annotator "ChessBase"]
[ECO "A45"]
[WhiteElo "2485"]
[BlackElo "2142"]
[PlyCount "116"]
[EventDate "2025.04.10"]
[EventType "swiss"]
[EventCountry "IND"]
[SourceTitle "playchess.com"]
[Source "ChessBase"]
[SourceQuality "1"]
[TimeControl "5400+30"]

1. d4 {[%emt 0:00:05]} Nf6 {[%emt 0:00:10]} 2. Bf4 {[%emt 0:00:15]} e6 {[%emt 0:01:30]} 3. e3 {[%emt 0:00:16]} c5 {[%emt 0:00:12]} 4. c3 {[%emt 0:00:23]} b6 {[%emt 0:00:40]} 5. Nd2 {[%emt 0:01:00]} cxd4 {[%emt 0:01:42]} 6. exd4 {[%emt 0:00:10]} Ba6 {[%emt 0:00:27]} 7. Bxa6 {[%emt 0:04:46]} Nxa6 {[%emt 0:00:06]} 8. Nc4 {[%emt 0:02:54]} Qc8 {[%emt 0:10:09]} 9. Qe2 {[%emt 0:06:05]} b5 {[%emt 0:01:11]} 10. Ne3 {[%emt 0:01:22]} Nc7 {[%emt 0:06:03]} 11. Nf3 {[%emt 0:21:13]} Ncd5 {[%emt 0:10:33]} 12. Nxd5 {[%emt 0:00:12]} Nxd5 {[%emt 0:00:06]} 13. Bd2 {[%emt 0:00:12]} Rb8 {[%emt 0:01:17]} 14. O-O {[%emt 0:58:37]} Be7 {[%emt 0:00:42]} 15. a4 {[%emt 0:00:00]} Qc4 {[%emt 0:09:51]} 16. Qd1 {[%emt 0:00:00]} a6 {[%emt 0:02:33]} 17. axb5 {[%emt 0:00:00]} axb5 {[%emt 0:01:35]} 18. Ra7 {[%emt 0:00:00]} d6 {[%emt 0:02:05]} 19. b3 {[%emt 0:00:00]} Qc6 {[%emt 0:04:01]} 20. Qc2 {[%emt 0:00:00]} O-O {[%emt 0:05:57]} 21. Rfa1 {[%emt 0:00:00]} Rfc8 {[%emt 0:03:46]} 22. R1a6 {[%emt 0:00:00]} Rb6 {[%emt 0:00:20]} 23. Rxb6 {[%emt 0:00:00]} Qxb6 {[%emt 0:00:04]} 24. Qa2 {[%emt 0:00:00]} Nxc3 {[%emt 0:04:35]} 25. Bxc3 {[%emt 0:00:00]} Rxc3 {[%emt 0:00:04]} 26. h3 {[%emt 0:00:00]} Bf8 {[%emt 0:01:10]} 27. Ra8 {[%emt 0:00:00]} h6 {[%emt 0:01:55]} 28. d5 {[%emt 0:00:00]} e5 {[%emt 0:03:07]} 29. Re8 {[%emt 0:00:00]} Qb7 {[%emt 0:03:22]} 30. Qa5 {[%emt 0:00:00]} Rc7 {[%emt 0:02:45]} 31. Nd2 {[%emt 0:00:00]} g6 {[%emt 0:03:06]} 32. Ne4 {[%emt 0:00:00]} Kg7 {[%emt 0:00:05]} 33. Kh2 {[%emt 0:01:03]} Be7 {[%emt 0:02:51]} 34. Nc3 {[%emt 0:00:56]} b4 {[%emt 0:01:18]} 35. Ne4 {[%emt 0:01:23]} f5 {[%emt 0:01:43]} 36. Rxe7+ {[%emt 0:00:12]} Rxe7 {[%emt 0:01:33]} 37. Nxd6 {[%emt 0:00:02]} Qa7 {[%emt 0:03:08]} 38. Qxb4 {[%emt 0:01:26]} Rd7 {[%emt 0:00:06]} 39. Ne8+ {[%emt 0:00:44]} Kf7 {[%emt 0:00:07]} 40. Nd6+ {[%emt 0:00:03]} Kg7 {[%emt 0:00:24]} 41. Ne8+ {[%emt 0:00:48]} Kf7 {[%emt 0:00:15]} 42. Nd6+ {[%emt 0:00:01]} Kg8 {[%emt 0:01:23]} 43. f3 {[%emt 0:00:32]} Qc7 {[%emt 0:04:57]} 44. Nb5 {[%emt 0:00:19]} Qc1 {[%emt 0:00:55]} 45. Qc4 {[%emt 0:00:59]} Qf4+ {[%emt 0:01:08]} 46. Kg1 {[%emt 0:01:22]} Qe3+ {[%emt 0:01:30]} 47. Kh1 {[%emt 0:00:08]} Qb6 {[%emt 0:01:25]} 48. b4 {[%emt 0:02:34]} Kg7 {[%emt 0:06:38]} 49. d6 {[%emt 0:01:50]} Kf6 {[%emt 0:00:30]} 50. Nc7 {[%emt 0:00:37]} Rxd6 {[%emt 0:00:00]} 51. Ne8+ {[%emt 0:00:04]} Ke7 {[%emt 0:00:00]} 52. Nxd6 {[%emt 0:00:03]} Qxd6 {[%emt 0:00:00]} 53. b5 {[%emt 0:00:34]} f4 {[%emt 0:00:00]} 54. Qb3 {[%emt 0:01:44]} Qb6 {[%emt 0:00:00]} 55. Qg8 {[%emt 0:01:39]} Qxb5 {[%emt 0:00:00]} 56. Qg7+ {[%emt 0:00:14]} Kd8 {[%emt 0:00:03]} 57. Qxh6 {[%emt 0:00:33]} Qb1+ {[%emt 0:00:17]} 58. Kh2 {[%emt 0:00:04]} Qf5 {[%emt 0:00:03]} 1/2-1/2

[Event "2nd Namma Bengaluru Open-A 2025"]
[Site "Bengaluru"]
[Date "2025.04.12"]
[Round "4.27"]
[White "Esshan Wadhawan"]
[Black "Ayush Sharma"]
[Result "0-1"]
[Annotator "ChessBase"]
[ECO "A06"]
[WhiteElo "2132"]
[BlackElo "2485"]
[PlyCount "50"]
[EventDate "2025.04.10"]
[EventType "swiss"]
[EventCountry "IND"]
[SourceTitle "playchess.com"]
[Source "ChessBase"]
[SourceQuality "1"]
[TimeControl "5400+30"]

1. Nf3 {[%emt 0:03:06]} Nf6 {[%emt 0:00:26]} 2. b3 {[%emt 0:00:39]} d5 {[%emt 0:02:40]} 3. Bb2 {[%emt 0:00:33]} c5 {[%emt 0:01:01]} 4. e3 {[%emt 0:01:16]} Nc6 {[%emt 0:02:06]} 5. d4 {[%emt 0:01:55]} Bg4 {[%emt 0:02:43]} 6. Be2 {[%emt 0:12:56]} e6 {[%emt 0:03:59]} 7. O-O {[%emt 0:01:45]} cxd4 {[%emt 0:07:59]} 8. Nxd4 {[%emt 0:05:59]} Bxe2 {[%emt 0:01:39]} 9. Qxe2 {[%emt 0:00:11]} Bc5 {[%emt 0:04:59]} 10. Nd2 {[%emt 0:04:06]} Bxd4 {[%emt 0:05:22]} 11. exd4 {[%emt 0:01:21]} O-O {[%emt 0:02:50]} 12. Rfd1 {[%emt 0:02:18]} Rb8 {[%emt 0:06:51]} 13. a4 {[%emt 0:06:24]} Qb6 {[%emt 0:04:50]} 14. Nf3 {[%emt 0:19:45]} Rfc8 {[%emt 0:01:08]} 15. Ne5 {[%emt 0:06:27]} a6 {[%emt 0:03:05]} 16. Rac1 {[%emt 0:06:00]} Rc7 {[%emt 0:03:07]} 17. Rd3 {[%emt 0:06:35]} Rbc8 {[%emt 0:09:04]} 18. c4 {[%emt 0:02:21]} Nxe5 {[%emt 0:03:46]} 19. dxe5 {[%emt 0:00:47]} dxc4 {[%emt 0:00:18]} 20. bxc4 {[%emt 0:08:01]} Nd5 {[%emt 0:02:09]} 21. Rdd1 {[%emt 0:00:41]} Nf4 {[%emt 0:02:18]} 22. Qd2 {[%emt 0:01:07]} Ng6 {[%emt 0:05:09]} 23. Ba3 {[%emt 0:04:24]} h6 {[%emt 0:01:22]} 24. Qe2 {[%emt 0:01:45]} Qb3 {[%emt 0:01:07]} 25. Rd3 {[%emt 0:01:02]} Nf4 {[%emt 0:00:08]} 0-1

[Event "2nd Namma Bengaluru Open-A 2025"]
[Site "Bengaluru"]
[Date "2025.04.12"]
[Round "4.28"]
[White "Neelash Saha"]
[Black "Jihan Tejas Shah"]
[Result "1-0"]
[Annotator "ChessBase"]
[ECO "A49"]
[WhiteElo "2460"]
[BlackElo "2131"]
[PlyCount "147"]
[EventDate "2025.04.10"]
[EventType "swiss"]
[EventCountry "IND"]
[SourceTitle "playchess.com"]
[Source "ChessBase"]
[SourceQuality "1"]
[TimeControl "5400+30"]

1. Nf3 {[%emt 0:00:06]} Nf6 {[%emt 0:00:11]} 2. b3 {[%emt 0:00:05]} g6 {[%emt 0:00:20]} 3. Bb2 {[%emt 0:00:07]} Bg7 {[%emt 0:00:14]} 4. g3 {[%emt 0:00:08]} O-O {[%emt 0:00:41]} 5. Bg2 {[%emt 0:00:04]} d6 {[%emt 0:02:11]} 6. d4 {[%emt 0:00:05]} a5 {[%emt 0:00:32]} 7. O-O {[%emt 0:01:19]} a4 {[%emt 0:00:03]} 8. c4 {[%emt 0:00:03]} axb3 {[%emt 0:00:06]} 9. axb3 {[%emt 0:00:05]} Rxa1 {[%emt 0:00:04]} 10. Bxa1 {[%emt 0:00:03]} c6 {[%emt 0:00:22]} 11. Nc3 {[%emt 0:00:09]} Na6 {[%emt 0:06:45]} 12. Qd2 {[%emt 0:04:04]} Bg4 {[%emt 0:04:41]} 13. h3 {[%emt 0:01:13]} Bxf3 {[%emt 0:02:04]} 14. Bxf3 {[%emt 0:00:32]} d5 {[%emt 0:01:19]} 15. e3 {[%emt 0:00:50]} Qd7 {[%emt 0:05:12]} 16. Bg2 {[%emt 0:01:33]} e6 {[%emt 0:02:48]} 17. Rb1 {[%emt 0:01:43]} Qe7 {[%emt 0:03:53]} 18. Na4 {[%emt 0:07:17]} b5 {[%emt 0:08:25]} 19. Qa5 {[%emt 0:07:32]} Qb7 {[%emt 0:08:25]} 20. cxb5 {[%emt 0:04:15]} cxb5 {[%emt 0:52:14]} 21. Nb2 {[%emt 0:00:21]} Ra8 {[%emt 0:00:00]} 22. Bf1 {[%emt 0:03:03]} Ne4 {[%emt 0:00:00]} 23. Qe1 {[%emt 0:01:39]} Rc8 {[%emt 0:00:00]} 24. Nd3 {[%emt 0:00:19]} b4 {[%emt 0:00:00]} 25. Bb2 {[%emt 0:01:10]} Rc2 {[%emt 0:00:00]} 26. Ra1 {[%emt 0:03:37]} Nb8 {[%emt 0:00:00]} 27. Rc1 {[%emt 0:00:07]} Rxc1 {[%emt 0:00:00]} 28. Bxc1 {[%emt 0:00:17]} Bf8 {[%emt 0:00:00]} 29. f3 {[%emt 0:00:46]} Nf6 {[%emt 0:00:00]} 30. Bd2 {[%emt 0:00:10]} Nc6 {[%emt 0:00:00]} 31. Qa1 {[%emt 0:00:06]} Qc7 {[%emt 0:00:00]} 32. Kg2 {[%emt 0:00:14]} Nh5 {[%emt 0:00:00]} 33. Be1 {[%emt 0:00:27]} Bd6 {[%emt 0:00:00]} 34. Nf4 {[%emt 1:04:01]} Nxf4+ {[%emt 0:00:00]} 35. gxf4 {[%emt 0:00:00]} Qa7 {[%emt 0:00:00]} 36. Qb1 {[%emt 0:00:00]} Nxd4 {[%emt 0:00:00]} 37. exd4 {[%emt 0:00:00]} Qxd4 {[%emt 0:00:00]} 38. Bg3 {[%emt 0:00:00]} Qd2+ {[%emt 0:00:00]} 39. Kh1 {[%emt 0:00:00]} Bxf4 {[%emt 0:00:00]} 40. Qe1 {[%emt 0:00:00]} Qd4 {[%emt 0:02:33]} 41. Bxf4 {[%emt 0:00:00]} Qxf4 {[%emt 0:00:01]} 42. Kg2 {[%emt 0:00:00]} Qd4 {[%emt 0:01:10]} 43. Qc1 {[%emt 0:00:00]} Kg7 {[%emt 0:00:41]} 44. Be2 {[%emt 0:00:00]} h5 {[%emt 0:00:41]} 45. f4 {[%emt 0:00:00]} e5 {[%emt 0:02:27]} 46. fxe5 {[%emt 0:00:00]} Qxe5 {[%emt 0:00:03]} 47. Qd2 {[%emt 0:00:00]} h4 {[%emt 0:00:41]} 48. Kf1 {[%emt 0:00:00]} Qd6 {[%emt 0:01:32]} 49. Bf3 {[%emt 0:00:00]} d4 {[%emt 0:00:31]} 50. Be2 {[%emt 0:00:00]} Qf6+ {[%emt 0:00:51]} 51. Ke1 {[%emt 0:00:00]} Qe5 {[%emt 0:00:46]} 52. Kd1 {[%emt 0:00:00]} Qc5 {[%emt 0:01:07]} 53. Bc4 {[%emt 0:00:00]} Qd6 {[%emt 0:01:00]} 54. Qf2 {[%emt 0:00:00]} f6 {[%emt 0:01:04]} 55. Qxh4 {[%emt 0:00:00]} Qh2 {[%emt 0:00:23]} 56. Qe1 {[%emt 0:00:00]} Qxh3 {[%emt 0:00:45]} 57. Qe7+ {[%emt 0:00:00]} Kh6 {[%emt 0:00:20]} 58. Qxf6 {[%emt 0:00:00]} Qc3 {[%emt 0:01:05]} 59. Qh4+ {[%emt 0:00:00]} Kg7 {[%emt 0:00:05]} 60. Qe4 {[%emt 0:00:00]} Kf6 {[%emt 0:00:46]} 61. Ke2 {[%emt 0:00:00]} Kg7 {[%emt 0:01:18]} 62. Qd3 {[%emt 0:00:00]} Kf6 {[%emt 0:00:32]} 63. Kf3 {[%emt 0:00:00]} Ke5 {[%emt 0:00:09]} 64. Kg4 {[%emt 0:00:00]} Qe1 {[%emt 0:00:29]} 65. Qg3+ {[%emt 0:00:00]} Qxg3+ {[%emt 0:00:05]} 66. Kxg3 {[%emt 0:00:00]} Ke4 {[%emt 0:00:45]} 67. Kf2 {[%emt 0:00:00]} d3 {[%emt 0:00:26]} 68. Ke1 {[%emt 0:00:00]} Ke3 {[%emt 0:00:07]} 69. Kd1 {[%emt 0:00:00]} d2 {[%emt 0:01:28]} 70. Bb5 {[%emt 0:00:00]} g5 {[%emt 0:00:11]} 71. Be2 {[%emt 0:00:00]} g4 {[%emt 0:00:44]} 72. Bxg4 {[%emt 0:00:00]} Kd3 {[%emt 0:00:02]} 73. Be6 {[%emt 0:00:00]} Kc3 {[%emt 0:00:27]} 74. Bc4 {[%emt 0:00:00]} 1-0

[Event "2nd Namma Bengaluru Open-A 2025"]
[Site "Bengaluru"]
[Date "2025.04.12"]
[Round "4.28"]
[White "Neelash Saha"]
[Black "Jihan Tejas Shah"]
[Result "*"]
[Annotator "RC"]
[ECO "A49"]
[WhiteElo "2460"]
[BlackElo "2131"]
[PlyCount "21"]
[EventDate "2025.04.10"]
[EventType "swiss"]
[EventCountry "IND"]
[SourceTitle "playchess.com"]
[Source "ChessBase"]
[SourceQuality "1"]
[TimeControl "5400+30"]

1. Nf3 {[%emt 0:00:06]} Nf6 {[%emt 0:00:11]} 2. b3 {[%emt 0:00:05]} g6 {[%emt 0:00:20]} 3. Bb2 {[%emt 0:00:07]} Bg7 {[%emt 0:00:14]} 4. g3 {[%emt 0:00:08]} O-O {[%emt 0:00:41]} 5. Bg2 {[%emt 0:00:04]} d6 {[%emt 0:02:11]} 6. d4 {[%emt 0:00:05]} a5 {[%emt 0:00:32]} 7. O-O {[%emt 0:01:19]} a4 {[%emt 0:00:03]} 8. c4 {[%emt 0:00:03]} axb3 {[%emt 0:00:06]} 9. axb3 {[%emt 0:00:05]} Ra5 {[%emt 1:30:42]} 10. Ra2 Rxa2 {[%emt 0:00:00]} 11. Ba1 {[%emt 0:00:33]} *